fUST/lending_fUST_20241130
["ID","MTS","AMOUNT","RATE_DAILY","PERIOD"]
[343811262,1732966233347,-500.0,0.00026999,2]
[343811263,1732966233359,-579.33227462,0.00026999,2]
[343811264,1732966233369,-500.0,0.00026999,2]
[343811265,1732966233379,-500.0,0.00026999,2]
[343811266,1732966233388,-500.0,0.00026999,2]
[343811267,1732966233399,-300.0,0.00027,3]
[343811268,1732966233408,-26804.31860018,0.00027,120]
[343811269,1732966233418,-420.0,0.00027082,2]
[343811270,1732966233428,-151.0,0.00027097,5]
[343811271,1732966233437,-1000.0,0.00027231,2]
[343811272,1732966233447,-1000.0,0.00027243,2]
[343811273,1732966233457,-1000.0,0.0002725,2]
[343811274,1732966233467,-196.690027,0.00027286,2]
[343811275,1732966233477,-198.95161694,0.000273,2]
[343811276,1732966233487,-1000.0,0.00027301,2]
[343811277,1732966233497,-1000.0,0.00027303,2]
[343811278,1732966233507,-198.95161694,0.00027325,2]
[343811279,1732966233517,-198.95161694,0.0002735,2]
[343811280,1732966233527,-426.02,0.0002735,10]
[343811281,1732966233537,-1000.0,0.00027356,2]
[343811282,1732966233547,-1000.0,0.00027366,2]
[343811283,1732966233557,-1000.0,0.00027367,2]
[343811284,1732966233567,-500.0,0.00027373,2]
[343811285,1732966233577,-198.95161694,0.00027375,2]
[343811286,1732966233587,-1000.0,0.00027379,2]
[343811287,1732966233596,-156.36963863,0.00027399,2]
[343811288,1732966233607,-292.03437663,0.00027399,2]
[343811289,1732966233617,-152.1080591,0.00027399,2]
[343811290,1732966233627,-65412.9989314,0.000274,2]
[343811291,1732966233637,-176.2,0.000274,16]
[343811292,1732966233647,-198.95161694,0.000274,2]
[343811293,1732966233657,-1000.0,0.00027475,2]
[343811294,1732966233667,-1000.0,0.00027476,2]
[343811295,1732966233677,-500.0,0.00027498,2]
[343811296,1732966233687,-298.96212509,0.00027499,2]
[343811297,1732966233699,-420.0,0.00027499,2]
[343811298,1732966233710,-6325.44374383,0.000275,2]
[343811299,1732966233737,-344840.07956732,0.000275,5]
[343811300,1732966233851,-192772.05879502,0.000275,5]
[343811370,1732966239078,-500.0,0.00026999,2]
[343811372,1732966239088,-500.0,0.00026999,2]
[343811374,1732966239099,-500.0,0.00026999,2]
[343811376,1732966239108,-500.0,0.00026999,2]
[343811378,1732966239117,-500.0,0.00026999,2]
[343811380,1732966239127,-500.0,0.00026999,2]
[343811382,1732966239138,-500.0,0.00026999,2]
[343811384,1732966239148,-496.12413964,0.00026999,2]
[343811386,1732966239157,-500.0,0.00026999,2]
[343811388,1732966239165,-500.0,0.00026999,2]
[343811390,1732966239175,-500.0,0.00026999,2]
[343811392,1732966239184,-500.0,0.00026999,2]
[343811395,1732966239193,-500.0,0.00026999,2]
[343811398,1732966239204,-253.12887025,0.00026999,2]
[343811401,1732966239213,-313.7449966,0.00026999,2]
[343811402,1732966239223,-500.0,0.00026999,2]
[343811405,1732966239233,-500.0,0.00026999,2]
[343811407,1732966239242,-500.0,0.00026999,2]
[343811408,1732966239253,-500.0,0.00026999,2]
[343811410,1732966239262,-500.0,0.00026999,2]
[343811412,1732966239272,-500.0,0.00026999,2]
[343811414,1732966239281,-500.0,0.00026999,2]
[343811416,1732966239290,-500.0,0.00026999,2]
[343811418,1732966239300,-367.42908682,0.00026999,2]
[343811420,1732966239309,-500.0,0.00026999,2]
[343811422,1732966239319,-500.0,0.00026999,2]
[343811424,1732966239329,-500.0,0.00026999,2]
[343811426,1732966239339,-500.0,0.00026999,2]
[343811429,1732966239350,-500.0,0.00026999,2]
[343811431,1732966239359,-500.0,0.00026999,2]
[343811433,1732966239369,-500.0,0.00026999,2]
[343811434,1732966239379,-587.13324636,0.00026999,2]
[343811437,1732966239388,-500.0,0.00026999,2]
[343811439,1732966239397,-355.02,0.0002735,10]
[343811441,1732966239407,-12936.89203424,0.000275,5]
[343811443,1732966239419,-14457.0,0.000275,5]
[343811445,1732966239430,-11532.7402318,0.000275,5]
[343811447,1732966239441,-10304.15206577,0.000275,5]
[343811560,1732966240817,-199.30808339,0.00027499,2]
[343811562,1732966240826,-472.47128496,0.000275,5]
[343811879,1732966243809,-4045.1880672,0.000275,5]
[343811881,1732966243823,-2330.43373893,0.000275,5]
[343811885,1732966243846,-92.7364264,0.000275,5]
[343814783,1732966277147,2000.0,0.00024,2]
[343822574,1732966831671,166.800528,0.00013973,2]
[343822592,1732967366111,-1479.74298758,0.00018642,2]
[343822593,1732967366133,-5000.0,0.0001883,2]
[343822594,1732967366155,-153.54672734,0.00019112,2]
[343822595,1732967366175,-291.76411604,0.0002,2]
[343822648,1732967432166,-5000.0,0.000198,2]
[343822649,1732967432176,-877.50671729,0.0002,2]
[343822650,1732967432186,-1169.27083333,0.0002,2]
[343822651,1732967432196,-1394.41146121,0.00020944,2]
[343822652,1732967432206,-300.0,0.00020944,2]
[343822653,1732967432216,-300.0,0.00020944,2]
[343822654,1732967432225,-62850.6524542,0.00020944,2]
[343822655,1732967432237,-255.62270597,0.00020944,2]
[343822656,1732967432274,-6570.72483983,0.00020944,2]
[343822657,1732967432283,-1475.48,0.00020945,11]
[343822658,1732967432293,-769.443523,0.00021603,2]
[343822659,1732967432304,-250.0,0.00021914,2]
[343822660,1732967432313,-168.0,0.00022,2]
[343822661,1732967432323,-157.0,0.00022,2]
[343822662,1732967432333,-168.0,0.00022192,2]
[343822663,1732967432342,-420.0,0.00022783,2]
[343822664,1732967432352,-152.0,0.00022934,2]
[343822665,1732967432362,-282.87,0.00023003,3]
[343822666,1732967432372,-103.58571013,0.00023003,3]
[343822667,1732967432385,-622.9339297,0.00023003,3]
[343822668,1732967432397,-122.10036017,0.00023003,3]
[343822670,1732967432407,-393.15366656,0.00023003,2]
[343822671,1732967432418,-1410.58976446,0.00023003,2]
[343822690,1732967438459,-500.0,0.00020943,2]
[343822691,1732967438468,-500.0,0.00020943,2]
[343822692,1732967438479,-500.0,0.00020943,2]
[343822693,1732967438488,-500.0,0.00020943,2]
[343822694,1732967438498,-500.0,0.00020943,2]
[343822695,1732967438508,-500.0,0.00020943,2]
[343822696,1732967438518,-2.88242648,0.00020943,2]
[343822697,1732967438529,-497.11757352,0.00020943,2]
[343822698,1732967438540,-500.0,0.00020943,2]
[343822699,1732967438549,-449.15492708,0.00020943,2]
[343822700,1732967438565,-50.84507292,0.00020943,2]
[343822701,1732967438574,-500.0,0.00020943,2]
[343822702,1732967438585,-37.42316233,0.00020943,2]
[343822711,1732967439980,-462.57683767,0.00020943,2]
[343822712,1732967439991,-236.00705319,0.00020943,2]
[343822713,1732967440001,-500.0,0.00020943,2]
[343822714,1732967440011,-500.0,0.00020943,2]
[343822715,1732967440020,-500.0,0.00020943,2]
[343822716,1732967440030,-500.0,0.00020943,2]
[343822717,1732967440041,-500.0,0.00020943,2]
[343822718,1732967440050,-500.0,0.00020943,2]
[343822719,1732967440059,-500.0,0.00020943,2]
[343822720,1732967440068,-238.37449966,0.00020943,2]
[343822721,1732967440078,-500.0,0.00020943,2]
[343822722,1732967440087,-500.0,0.00020943,2]
[343822723,1732967440096,-500.0,0.00020943,2]
[343822724,1732967440106,-500.0,0.00020943,2]
[343822725,1732967440115,-540.760592,0.00020943,2]
[343822726,1732967440124,-500.0,0.00020943,2]
[343822727,1732967440133,-500.0,0.00020943,2]
[343822728,1732967440143,-500.0,0.00020943,2]
[343822729,1732967440152,-500.0,0.00020943,2]
[343822730,1732967440162,-500.0,0.00020943,2]
[343822731,1732967440172,-500.0,0.00020943,2]
[343822732,1732967440182,-500.0,0.00020943,2]
[343822733,1732967440192,-500.0,0.00020943,2]
[343822734,1732967440201,-500.0,0.00020943,2]
[343822735,1732967440211,-500.0,0.00020943,2]
[343822736,1732967440220,-500.0,0.00020943,2]
[343822737,1732967440230,-597.10664081,0.00020943,2]
[343822738,1732967440240,-500.0,0.00020943,2]
[343822739,1732967440250,-218.83001021,0.00020943,2]
[343822740,1732967440262,-281.16998979,0.00020943,2]
[343822741,1732967440271,-98.29001021,0.00020943,2]
[343822742,1732967443428,-180.80639066,0.00020943,2]
[343822743,1732967443440,-500.0,0.00020943,2]
[343822744,1732967443450,-500.0,0.00020943,2]
[343822745,1732967443459,-117.03587688,0.00020943,2]
[343822772,1732968296422,167.077839,0.00013973,2]
[343822818,1732968632094,-963.95,0.00016994,2]
[343822891,1732968638306,-185.10237904,0.00016994,2]
[343822893,1732968638316,-5000.0,0.00017166,2]
[343822895,1732968638326,-466.810105,0.00017339,2]
[343822897,1732968638336,-300.0,0.00017489,2]
[343822899,1732968638347,-300.0,0.00017489,2]
[343822901,1732968638357,-24900.0,0.00017491,2]
[343822903,1732968638367,-250.0,0.00017587,2]
[343822905,1732968638377,-8951.6514041,0.00017788,2]
[343822907,1732968638387,-1518.41522974,0.00017788,2]
[343822910,1732968638396,-500.0,0.00017843,2]
[343822912,1732968638406,-171.19562133,0.00017843,2]
[343822914,1732968638415,-500.0,0.00017843,2]
[343822915,1732968638425,-500.0,0.00017843,2]
[343822917,1732968638435,-500.0,0.00017843,2]
[343822920,1732968638445,-500.0,0.00017843,2]
[343822922,1732968638454,-500.0,0.00017843,2]
[343822923,1732968638465,-500.0,0.00017843,2]
[343822926,1732968638475,-500.0,0.00017843,2]
[343822927,1732968638485,-500.0,0.00017843,2]
[343822930,1732968638495,-500.0,0.00017843,2]
[343822932,1732968638505,-419.8996001,0.00017843,2]
[343822934,1732968638515,-500.0,0.00017843,2]
[343822935,1732968638524,-432.92566009,0.00017843,2]
[343823379,1732968643108,-67.07433991,0.00017843,2]
[343823381,1732968643117,-25.75520597,0.00017843,2]
[343825413,1732969060682,-2495.97961762,0.00016206,2]
[343825414,1732969060707,-3366.7195976,0.00016369,2]
[343825415,1732969060732,-300.0,0.00016824,2]
[343825416,1732969060757,-148.30078478,0.00016824,2]
[343825417,1732969212871,166.811469,0.00013973,2]
[343825418,1732969381359,459.03,0.00010959,2]
[343825419,1732969429806,1053.8595683,0.0001569,2]
[343825421,1732969473724,229.51,0.00010959,2]
[343825422,1732969484211,191.26,0.00010959,2]
[343825423,1732969502832,7374.8061618,0.0001569,2]
[343825424,1732969505834,478.18,0.00010959,2]
[343825425,1732969547584,478.14,0.00010959,2]
[343825449,1732969747110,-334.7799824,0.00016143,2]
[343825450,1732969747131,-153.54672734,0.00016308,2]
[343825451,1732969747150,-2661.850462,0.00016408,2]
[343825452,1732969747172,-300.0,0.00016524,2]
[343825453,1732969747195,-300.0,0.00016524,2]
[343825454,1732969747216,-841.43584336,0.00016525,2]
[343825455,1732969821827,166.971662,0.00013973,2]
[343825502,1732969832772,-191.85409285,0.00016524,2]
[343825525,1732969838457,-108.14590715,0.00016524,2]
[343825526,1732969838468,-24058.56415664,0.00016525,2]
[343825527,1732969838481,-250.0,0.00016547,2]
[343825528,1732969838491,-233.405053,0.00016637,2]
[343825529,1732969838502,-346.7331274,0.00016879,2]
[343825530,1732969838513,-1281.51414047,0.00017737,2]
[343825531,1732969838523,-499.49400801,0.00017739,2]
[343825532,1732969838534,-576.56029364,0.00017739,2]
[343825533,1732969838545,-244.98817926,0.00017833,2]
[343825534,1732969838556,-500.0,0.00017833,2]
[343825535,1732969838566,-342.53391225,0.00017833,2]
[343825536,1732969838576,-378.29135478,0.00017833,2]
[343825537,1732969838585,-233.02460161,0.00017833,2]
[343825538,1732969838594,-500.0,0.00017833,2]
[343825539,1732969838605,-500.0,0.00017833,2]
[343825540,1732969838615,-500.0,0.00017833,2]
[343825541,1732969838624,-500.0,0.00017833,2]
[343825542,1732969838634,-500.0,0.00017833,2]
[343825543,1732969838645,-500.0,0.00017833,2]
[343825544,1732969838654,-500.0,0.00017833,2]
[343825545,1732969838664,-500.0,0.00017833,2]
[343825546,1732969838674,-500.0,0.00017833,2]
[343825547,1732969838685,-500.0,0.00017833,2]
[343825548,1732969838694,-500.0,0.00017833,2]
[343825549,1732969838705,-500.0,0.00017833,2]
[343825550,1732969838715,-500.0,0.00017833,2]
[343825551,1732969838725,-500.0,0.00017833,2]
[343825552,1732969838735,-202.47729161,0.00017833,2]
[343825553,1732969838746,-500.0,0.00017833,2]
[343825554,1732969838756,-415.88870324,0.00017833,2]
[343825555,1732969838766,-500.0,0.00017833,2]
[343825556,1732969838776,-500.0,0.00017833,2]
[343825557,1732969838786,-500.0,0.00017833,2]
[343825558,1732969838796,-500.0,0.00017833,2]
[343825559,1732969838807,-500.0,0.00017833,2]
[343825560,1732969838817,-500.0,0.00017833,2]
[343825561,1732969838827,-500.0,0.00017833,2]
[343825562,1732969838837,-500.0,0.00017833,2]
[343825563,1732969838847,-216.11136704,0.00017833,2]
[343825564,1732969838861,-283.88863296,0.00017833,2]
[343825565,1732969838871,-376.69120036,0.00017833,2]
[343825566,1732969838881,-500.0,0.00017833,2]
[343825567,1732969838891,-500.0,0.00017833,2]
[343825568,1732969838902,-500.0,0.00017833,2]
[343825569,1732969838912,-500.0,0.00017833,2]
[343825570,1732969838923,-500.0,0.00017833,2]
[343825571,1732969838934,-500.0,0.00017833,2]
[343825572,1732969838944,-500.0,0.00017833,2]
[343825573,1732969838954,-500.0,0.00017833,2]
[343825574,1732969838964,-500.0,0.00017833,2]
[343825575,1732969838974,-25.35859655,0.00017833,2]
[343828272,1732970282034,163.06,0.00010959,2]
[343828273,1732970292581,815.35,0.00010959,2]
[343828274,1732970314984,-471.97953731,0.00016524,2]
[343828275,1732970315008,-4544.08489344,0.00016691,2]
[343828276,1732970315032,-300.0,0.00016847,2]
[343828277,1732970315056,-300.0,0.00016847,2]
[343828278,1732970315080,-24900.0,0.00016848,2]
[343828279,1732970315102,-233.4050539,0.0001686,2]
[343828280,1732970315126,-500.0,0.00017829,2]
[343828281,1732970315150,-500.0,0.00017829,2]
[343828282,1732970315174,-500.0,0.00017829,2]
[343828283,1732970315198,-500.0,0.00017829,2]
[343828284,1732970315223,-500.0,0.00017829,2]
[343828285,1732970315248,-500.0,0.00017829,2]
[343828286,1732970315271,-500.0,0.00017829,2]
[343828287,1732970315296,-500.0,0.00017829,2]
[343828288,1732970315320,-500.0,0.00017829,2]
[343828289,1732970315345,-500.0,0.00017829,2]
[343828290,1732970315371,-500.0,0.00017829,2]
[343828291,1732970315399,-500.0,0.00017829,2]
[343828292,1732970315423,-500.0,0.00017829,2]
[343828293,1732970315450,-500.0,0.00017829,2]
[343828294,1732970315475,-500.0,0.00017829,2]
[343828295,1732970315501,-500.0,0.00017829,2]
[343828296,1732970315526,-500.0,0.00017829,2]
[343828297,1732970315552,-500.0,0.00017829,2]
[343828298,1732970315577,-500.0,0.00017829,2]
[343828299,1732970315601,-500.0,0.00017829,2]
[343828300,1732970315626,-500.0,0.00017829,2]
[343828301,1732970315650,-500.0,0.00017829,2]
[343828302,1732970315675,-500.0,0.00017829,2]
[343828303,1732970315699,-500.0,0.00017829,2]
[343828304,1732970315725,-500.0,0.00017829,2]
[343828305,1732970315751,-500.0,0.00017829,2]
[343828306,1732970315775,-500.0,0.00017829,2]
[343828307,1732970315800,-500.0,0.00017829,2]
[343828308,1732970315825,-500.0,0.00017829,2]
[343828309,1732970315850,-500.0,0.00017829,2]
[343828310,1732970315876,-500.0,0.00017829,2]
[343828311,1732970315903,-240.71759354,0.00017829,2]
[343828312,1732970315928,-500.0,0.00017829,2]
[343828313,1732970315954,-500.0,0.00017829,2]
[343828314,1732970315979,-500.0,0.00017829,2]
[343828315,1732970316005,-500.0,0.00017829,2]
[343828316,1732970316032,-500.0,0.00017829,2]
[343828317,1732970316058,-500.0,0.00017829,2]
[343828318,1732970316086,-500.0,0.00017829,2]
[343828319,1732970316112,-500.0,0.00017829,2]
[343828320,1732970316139,-500.0,0.00017829,2]
[343828321,1732970316168,-563.0926594,0.00017829,2]
[343828322,1732970316194,-500.0,0.00017829,2]
[343828323,1732970316219,-500.0,0.00017829,2]
[343828324,1732970316244,-500.0,0.00017829,2]
[343828325,1732970316269,-500.0,0.00017829,2]
[343828326,1732970316293,-500.0,0.00017829,2]
[343828327,1732970316318,-500.0,0.00017829,2]
[343828328,1732970316343,-500.0,0.00017829,2]
[343828329,1732970316368,-500.0,0.00017829,2]
[343828330,1732970316507,-500.0,0.00017829,2]
[343828331,1732970316533,-500.0,0.00017829,2]
[343828332,1732970316558,-500.0,0.00017829,2]
[343828333,1732970316583,-500.0,0.00017829,2]
[343828334,1732970316608,-500.0,0.00017829,2]
[343828335,1732970316633,-500.0,0.00017829,2]
[343828336,1732970316658,-500.0,0.00017829,2]
[343828337,1732970316682,-500.0,0.00017829,2]
[343828338,1732970316707,-500.0,0.00017829,2]
[343828339,1732970316731,-500.0,0.00017829,2]
[343828340,1732970316756,-500.0,0.00017829,2]
[343828341,1732970316784,-500.0,0.00017829,2]
[343828342,1732970316810,-500.0,0.00017829,2]
[343828343,1732970316837,-500.0,0.00017829,2]
[343828344,1732970316863,-500.0,0.00017829,2]
[343828345,1732970316890,-500.0,0.00017829,2]
[343828346,1732970316918,-500.0,0.00017829,2]
[343828347,1732970316945,-500.0,0.00017829,2]
[343828348,1732970316970,-500.0,0.00017829,2]
[343828349,1732970316996,-500.0,0.00017829,2]
[343828350,1732970317022,-500.0,0.00017829,2]
[343828351,1732970317049,-500.0,0.00017829,2]
[343828352,1732970317076,-500.0,0.00017829,2]
[343828353,1732970317103,-500.0,0.00017829,2]
[343828354,1732970317130,-500.0,0.00017829,2]
[343828355,1732970317156,-366.27606737,0.00017829,2]
[343828356,1732970317181,-500.0,0.00017829,2]
[343828357,1732970317205,-500.0,0.00017829,2]
[343828358,1732970317228,-1386.92701159,0.00017831,2]
[343828359,1732970317252,-151.0,0.00017831,2]
[343828360,1732970317277,-151.0,0.00017831,2]
[343828361,1732970317309,-151.0,0.00017831,2]
[343828362,1732970317339,-171.49172548,0.00017899,2]
[343828363,1732970317365,-163.11722113,0.00017899,2]
[343828364,1732970317395,-500.0,0.00017899,2]
[343828365,1732970317421,-239.77373858,0.00017899,2]
[343828366,1732970317446,-175.01316741,0.00017899,2]
[343828367,1732970317474,-500.0,0.000179,2]
[343828368,1732970317500,-261.7,0.000179,2]
[343828369,1732970317524,-180.14321687,0.000179,2]
[343828370,1732970317548,-217.41724792,0.000179,2]
[343828371,1732970317573,-239.9,0.000179,2]
[343828372,1732970317597,-160.0,0.000179,2]
[343828373,1732970317621,-163.5,0.000179,2]
[343828374,1732970317645,-500.0,0.000179,2]
[343828375,1732970317669,-607.7364272,0.000179,2]
[343828376,1732970317692,-160.5,0.000179,2]
[343828377,1732970317716,-500.0,0.000179,2]
[343828378,1732970317740,-206.22075292,0.000179,2]
[343828379,1732970317763,-500.0,0.000179,2]
[343828380,1732970317787,-500.0,0.000179,2]
[343828381,1732970317812,-619.87392146,0.000179,2]
[343828382,1732970317836,-366.94440381,0.000179,2]
[343828383,1732970317860,-500.0,0.000179,2]
[343828384,1732970317885,-420.0,0.00018403,2]
[343828385,1732970317910,-503.93387886,0.00018448,2]
[343828386,1732970317935,-1000.0,0.00018448,2]
[343828387,1732970317959,-1000.0,0.00018448,2]
[343828388,1732970317984,-282.96156645,0.00018448,2]
[343828389,1732970318008,-503.07407514,0.00018448,2]
[343828390,1732970318032,-151.0,0.00018448,2]
[343828391,1732970318057,-420.0,0.00018531,2]
[343828392,1732970318083,-5000.0,0.00019178,2]
[343828393,1732970318110,-5000.0,0.00019178,2]
[343828394,1732970318134,-5000.0,0.00019178,2]
[343828395,1732970318160,-151.0,0.00019178,2]
[343828396,1732970318184,-185.362343,0.00019178,2]
[343828397,1732970318208,-160.114495,0.00019178,2]
[343828398,1732970318233,-366.66574807,0.0001945,2]
[343828399,1732970318257,-1500.0,0.0001945,2]
[343828400,1732970318282,-220.848132,0.0001945,2]
[343828401,1732970318307,-5000.0,0.00019989,2]
[343828402,1732970318331,-5000.0,0.00019989,2]
[343828403,1732970318356,-30223.44810886,0.0001999,2]
[343828404,1732970318383,-5000.0,0.00019999,2]
[343828405,1732970318409,-1169.27083333,0.0002,2]
[343828406,1732970318433,-796.1210064,0.0002,2]
[343828407,1732970318460,-151.0,0.0002,2]
[343828408,1732970318483,-151.0,0.0002,2]
[343828409,1732970318508,-151.0,0.0002,2]
[343828410,1732970318531,-151.0,0.0002,2]
[343828411,1732970318554,-152.20052548,0.0002,2]
[343828412,1732970318697,-22508.0,0.0002,2]
[343828413,1732970318722,-587.0,0.00020104,2]
[343828414,1732970318746,-3689.08144709,0.00020376,2]
[343828415,1732970318769,-25377.60608145,0.00020377,2]
[343828416,1732970318793,-587.0,0.00020385,2]
[343828417,1732970318817,-234.830625,0.00020521,2]
[343828418,1732970318839,-234.830625,0.00020712,2]
[343828419,1732970318862,-2000.0,0.00020747,2]
[343828420,1732970318885,-234.830625,0.00020904,2]
[343828421,1732970318907,-5722.52956032,0.00021,5]
[343828422,1732970318930,-262.10053554,0.00021,2]
[343828423,1732970318952,-10289.15564688,0.00021,2]
[343828424,1732970318975,-236.21099034,0.00021,2]
[343828425,1732970318997,-6830.0,0.00021,2]
[343828426,1732970319020,-151.0,0.00021,2]
[343828427,1732970319043,-151.0,0.00021,2]
[343828428,1732970319066,-151.0,0.00021,2]
[343828429,1732970319089,-234.830625,0.00021096,2]
[343828430,1732970319112,-151.0,0.00021096,2]
[343828431,1732970319134,-234.830625,0.00021288,2]
[343828432,1732970321369,1710.80891136,0.000213,2]
[343828434,1732970435540,166.949988,0.00013973,2]
[343828436,1732970947141,-194.56180215,0.0001773,2]
[343828437,1732970947163,-151.0,0.0001783,2]
[343828438,1732970947184,-31.24872944,0.0001783,2]
[343828439,1732970996020,199.558976,0.00024658,120]
[343828493,1732971033810,-119.75127056,0.0001783,2]
[343828494,1732971033820,-151.0,0.0001783,2]
[343828495,1732971033830,-156.9032,0.00017831,2]
[343828496,1732971033840,-156.9032,0.00017831,2]
[343828497,1732971033850,-156.9032,0.00017831,2]
[343828498,1732971033860,-156.9032,0.00017831,2]
[343828499,1732971033869,-156.9032,0.00017831,2]
[343828500,1732971033879,-156.9032,0.00017831,2]
[343828501,1732971033889,-151.0,0.000179,2]
[343828502,1732971033899,-156.9032,0.00018448,2]
[343828503,1732971033908,-156.9032,0.00018448,2]
[343828504,1732971033917,-151.0,0.00019178,2]
[343828505,1732971033927,-156.9032,0.00019178,2]
[343828506,1732971033936,-156.9032,0.00019178,2]
[343828507,1732971033946,-170.9158002,0.00019178,2]
[343828508,1732971033958,-300.0,0.00019449,2]
[343828509,1732971033968,-300.0,0.00019449,2]
[343828510,1732971033977,-151.0,0.0001945,2]
[343828511,1732971033987,-156.9032,0.0001945,2]
[343828512,1732971033998,-156.9032,0.0001945,2]
[343828513,1732971034009,-201.372995,0.0001999,2]
[343828514,1732971034020,-156.9032,0.0001999,2]
[343828515,1732971034030,-156.9032,0.0001999,2]
[343828516,1732971034042,-1169.27083333,0.0002,2]
[343828517,1732971034053,-156.9032,0.0002,2]
[343828518,1732971034063,-156.9032,0.0002,2]
[343828519,1732971034073,-156.9032,0.00020377,2]
[343828520,1732971034082,-156.9032,0.00020377,2]
[343828521,1732971034092,-9029.00543101,0.00020869,2]
[343828529,1732971038387,-6821.793785,0.00020869,2]
[343828530,1732971038401,-1289.1309375,0.00020869,2]
[343828538,1732971040350,-7760.06984649,0.00020869,2]
[343828539,1732971040360,-1115.83698079,0.000209,2]
[343828540,1732971040371,-156.9032,0.00021,2]
[343828541,1732971040380,-156.90319,0.00021,2]
[343828542,1732971040390,-420.0,0.0002119,2]
[343828543,1732971040399,-1336.279848,0.00021243,2]
[343828544,1732971040409,-242.0211514,0.00021257,2]
[343828545,1732971040419,-4487.12432266,0.00021264,2]
[343828546,1732971040429,-195.24752935,0.00021264,2]
[343828547,1732971040439,-417.8442342,0.00021354,2]
[343828548,1732971040448,-420.0,0.00021394,2]
[343828549,1732971040458,-250.0,0.00021398,2]
[343828550,1732971040468,-223.0,0.00022,2]
[343828551,1732971040478,-162.0,0.00022,2]
[343828552,1732971040488,-1161.78255389,0.00022,2]
[343828553,1732971040498,-223.0,0.00022192,2]
[343828554,1732971040507,-162.0,0.00022192,2]
[343828555,1732971040517,-1115.83698076,0.0002226,2]
[343828556,1732971040528,-187.8645,0.00022592,2]
[343828557,1732971040540,-2698.61716957,0.00023002,2]
[343828558,1732971040550,-500.0,0.00023013,2]
[343828559,1732971040559,-500.0,0.00023013,2]
[343828560,1732971040569,-500.0,0.00023013,2]
[343828561,1732971040579,-500.0,0.00023013,2]
[343828562,1732971040589,-500.0,0.00023013,2]
[343828563,1732971040603,-500.0,0.00023013,2]
[343828564,1732971040613,-500.0,0.00023013,2]
[343828565,1732971040623,-500.0,0.00023013,2]
[343828566,1732971040632,-500.0,0.00023013,2]
[343828567,1732971040642,-395.89918438,0.00023013,2]
[343828568,1732971040652,-500.0,0.00023013,2]
[343828569,1732971040661,-500.0,0.00023013,2]
[343828570,1732971040674,-500.0,0.00023013,2]
[343828571,1732971040683,-500.0,0.00023013,2]
[343828572,1732971040693,-537.43943344,0.00023013,2]
[343828573,1732971040702,-500.0,0.00023013,2]
[343828574,1732971040712,-157.32096703,0.00023013,2]
[343828575,1732971040721,-500.0,0.00023013,2]
[343828576,1732971040731,-500.0,0.00023013,2]
[343828577,1732971040740,-500.0,0.00023013,2]
[343828578,1732971040750,-500.0,0.00023013,2]
[343828579,1732971040759,-500.0,0.00023013,2]
[343828580,1732971040769,-500.0,0.00023013,2]
[343828581,1732971040778,-500.0,0.00023013,2]
[343828582,1732971040789,-500.0,0.00023013,2]
[343828583,1732971040799,-500.0,0.00023013,2]